[Event "Titled Tuesday Blitz December 13 Early 2022"]
[White "Xiong, Jeffery"]
[Black "Xu, Yi"]
[WhiteFideId "2047640"]
[BlackFideId "8605564"]
[WhiteElo "2726"]
[BlackElo "2471"]
[Result "1-0"]
[Round "07"]
[TimeControl "180+1"]
[Date "2022.12.13"]
[WhiteClock "0:01:27"]
[BlackClock "0:00:04"]

1. e4 {[%clk 0:03:00]}  c5 {[%clk 0:02:58]} 2. Nf3 {[%clk 0:03:00]}  d6 {[%clk 0:02:58]} 3. Nc3 {[%clk 0:03:00]}  Nc6 {[%clk 0:02:51]} 4. d4 {[%clk 0:03:00]}  cxd4 {[%clk 0:02:51]} 5. Nxd4 {[%clk 0:03:00]}  Nf6 {[%clk 0:02:51]} 6. Bg5 {[%clk 0:03:01]}  e6 {[%clk 0:02:51]} 7. Qd3 {[%clk 0:03:01]}  Bd7 {[%clk 0:02:49]} 8. O-O-O {[%clk 0:03:01]}  a6 {[%clk 0:02:32]} 9. f4 {[%clk 0:03:01]}  Be7 {[%clk 0:02:22]} 10. Nf3 {[%clk 0:03:01]}  h6 {[%clk 0:02:04]} 11. Bxf6 {[%clk 0:03:01]}  gxf6 {[%clk 0:02:03]} 12. Kb1 {[%clk 0:02:57]}  b5 {[%clk 0:02:03]} 13. Qe3 {[%clk 0:02:58]}  b4 {[%clk 0:01:38]} 14. Ne2 {[%clk 0:02:58]}  Qa5 {[%clk 0:01:36]} 15. Nc1 {[%clk 0:02:57]}  h5 {[%clk 0:01:36]} 16. Bc4 {[%clk 0:02:56]}  Rb8 {[%clk 0:01:25]} 17. Rhe1 {[%clk 0:02:53]}  Qb6 {[%clk 0:01:23]} 18. Qe2 {[%clk 0:02:27]}  a5 {[%clk 0:01:23]} 19. f5 {[%clk 0:02:27]}  a4 {[%clk 0:01:15]} 20. fxe6 {[%clk 0:02:26]}  fxe6 {[%clk 0:01:15]} 21. Nd3 {[%clk 0:02:27]}  a3 {[%clk 0:01:11]} 22. Nf4 {[%clk 0:02:27]}  Kf7 {[%clk 0:00:42]} 23. Rf1 {[%clk 0:02:14]}  Qc5 {[%clk 0:00:37]} 24. e5 {[%clk 0:02:03]}  Nxe5 {[%clk 0:00:33]} 25. Bxe6+ {[%clk 0:02:00]}  Bxe6 {[%clk 0:00:29]} 26. Ng5+ {[%clk 0:02:00]}  Ke8 {[%clk 0:00:11]} 27. Ngxe6 {[%clk 0:02:01]}  Qc6 {[%clk 0:00:09]} 28. Nd5 {[%clk 0:01:55]}  b3 {[%clk 0:00:09]} 29. cxb3 {[%clk 0:01:45]}  axb2 {[%clk 0:00:09]} 30. Ng7+ {[%clk 0:01:31]}  Kf7 {[%clk 0:00:08]} 31. Nxh5 {[%clk 0:01:31]}  Rxb3 {[%clk 0:00:04]} 32. axb3 {[%clk 0:01:29]}  Ra8 {[%clk 0:00:04]} 33. Qxb2 {[%clk 0:01:27]} 1-0


[Site "https://www.chess.com"]

[Event "Titled Tuesday Blitz December 13 Early 2022"]
[White "Yuan, Qingyu"]
[Black "Czopor, Maciej"]
[WhiteFideId "8609772"]
[BlackFideId "21805431"]
[WhiteElo "2359"]
[BlackElo "2324"]
[Result "0-1"]
[Round "07"]
[TimeControl "180+1"]
[Date "2022.12.14"]
[WhiteClock "0:00:02"]
[BlackClock "0:00:35"]

1. e4 {[%clk 0:03:00]}  g6 {[%clk 0:02:58]} 2. d4 {[%clk 0:03:00]}  c6 {[%clk 0:02:59]} 3. Nf3 {[%clk 0:02:57]}  Bg7 {[%clk 0:02:59]} 4. h3 {[%clk 0:02:54]}  d5 {[%clk 0:02:59]} 5. e5 {[%clk 0:02:55]}  f6 {[%clk 0:03:00]} 6. Bd3 {[%clk 0:02:51]}  Nh6 {[%clk 0:02:59]} 7. O-O {[%clk 0:02:44]}  O-O {[%clk 0:02:59]} 8. Re1 {[%clk 0:02:38]}  fxe5 {[%clk 0:02:59]} 9. Nxe5 {[%clk 0:02:35]}  Nf7 {[%clk 0:02:58]} 10. Nf3 {[%clk 0:02:20]}  Nd7 {[%clk 0:02:49]} 11. c4 {[%clk 0:02:15]}  Nb6 {[%clk 0:02:42]} 12. cxd5 {[%clk 0:02:13]}  cxd5 {[%clk 0:02:38]} 13. Nc3 {[%clk 0:02:13]}  e6 {[%clk 0:02:35]} 14. Bf4 {[%clk 0:02:11]}  Bd7 {[%clk 0:02:35]} 15. Qd2 {[%clk 0:02:07]}  Rc8 {[%clk 0:02:35]} 16. b3 {[%clk 0:02:01]}  Qe7 {[%clk 0:02:21]} 17. Rac1 {[%clk 0:01:57]}  Qb4 {[%clk 0:02:16]} 18. Bf1 {[%clk 0:01:28]}  Qe7 {[%clk 0:02:11]} 19. Nb5 {[%clk 0:01:18]}  Bxb5 {[%clk 0:02:06]} 20. Bxb5 {[%clk 0:01:18]}  a6 {[%clk 0:02:06]} 21. Bd3 {[%clk 0:01:16]}  Qd7 {[%clk 0:02:06]} 22. Re2 {[%clk 0:01:04]}  Rxc1+ {[%clk 0:02:06]} 23. Qxc1 {[%clk 0:01:04]}  Nc8 {[%clk 0:01:58]} 24. h4 {[%clk 0:01:00]}  Ncd6 {[%clk 0:01:55]} 25. h5 {[%clk 0:01:00]}  gxh5 {[%clk 0:01:52]} 26. Qb1 {[%clk 0:00:57]}  Nf5 {[%clk 0:01:48]} 27. Qe1 {[%clk 0:00:38]}  Nd8 {[%clk 0:01:29]} 28. Ne5 {[%clk 0:00:36]}  Qe8 {[%clk 0:01:30]} 29. Bxf5 {[%clk 0:00:27]}  Rxf5 {[%clk 0:01:29]} 30. Bg3 {[%clk 0:00:23]}  Bf6 {[%clk 0:01:08]} 31. Nf3 {[%clk 0:00:22]}  Qe7 {[%clk 0:01:03]} 32. Qb1 {[%clk 0:00:22]}  Nc6 {[%clk 0:00:59]} 33. Qd3 {[%clk 0:00:20]}  h4 {[%clk 0:00:58]} 34. Bh2 {[%clk 0:00:20]}  h3 {[%clk 0:00:53]} 35. gxh3 {[%clk 0:00:17]}  Qg7+ {[%clk 0:00:49]} 36. Kf1 {[%clk 0:00:13]}  Nxd4 {[%clk 0:00:42]} 37. Nxd4 {[%clk 0:00:09]}  Bxd4 {[%clk 0:00:43]} 38. Bg3 {[%clk 0:00:09]}  Kf7 {[%clk 0:00:41]} 39. Kg2 {[%clk 0:00:07]}  h5 {[%clk 0:00:40]} 40. h4 {[%clk 0:00:07]}  Qg4 {[%clk 0:00:38]} 41. Re1 {[%clk 0:00:05]}  Rxf2+ {[%clk 0:00:36]} 42. Kg1 {[%clk 0:00:02]}  Rd2+ {[%clk 0:00:36]} 43. Kh1 {[%clk 0:00:02]}  Rxd3 {[%clk 0:00:36]} 44. Rf1+ {[%clk 0:00:03]}  Ke8 {[%clk 0:00:36]} 45. Bh2 {[%clk 0:00:02]}  Qe4+ {[%clk 0:00:35]} 0-1


[Site "https://www.chess.com"]

[Event "Titled Tuesday Blitz December 13 Early 2022"]
[White "Zhigalko, Sergei"]
[Black "Ashraf, Artin"]
[WhiteFideId "13502956"]
[BlackFideId "22514805"]
[WhiteElo "2854"]
[BlackElo "2659"]
[Result "1-0"]
[Round "07"]
[TimeControl "180+1"]
[Date "2022.12.14"]
[WhiteClock "0:01:13"]
[BlackClock "0:00:56"]

1. e4 {[%clk 0:03:00]}  d6 {[%clk 0:02:53]} 2. d4 {[%clk 0:03:00]}  Nf6 {[%clk 0:02:53]} 3. Nc3 {[%clk 0:03:00]}  e5 {[%clk 0:02:53]} 4. Nf3 {[%clk 0:03:00]}  exd4 {[%clk 0:02:51]} 5. Qxd4 {[%clk 0:03:00]}  Nc6 {[%clk 0:02:49]} 6. Bb5 {[%clk 0:02:58]}  Bd7 {[%clk 0:02:50]} 7. Bxc6 {[%clk 0:02:58]}  Bxc6 {[%clk 0:02:51]} 8. Bg5 {[%clk 0:02:58]}  Be7 {[%clk 0:02:50]} 9. O-O-O {[%clk 0:02:59]}  h6 {[%clk 0:02:38]} 10. Bh4 {[%clk 0:02:57]}  O-O {[%clk 0:02:33]} 11. Rhe1 {[%clk 0:02:56]}  Nd7 {[%clk 0:02:29]} 12. Bxe7 {[%clk 0:02:55]}  Qxe7 {[%clk 0:02:30]} 13. Qd2 {[%clk 0:02:52]}  Ne5 {[%clk 0:02:18]} 14. Nd4 {[%clk 0:02:53]}  Qf6 {[%clk 0:01:57]} 15. f4 {[%clk 0:02:27]}  Nc4 {[%clk 0:01:55]} 16. Qf2 {[%clk 0:02:27]}  Rfe8 {[%clk 0:01:49]} 17. b3 {[%clk 0:02:22]}  Nb6 {[%clk 0:01:46]} 18. g4 {[%clk 0:02:10]}  Nd7 {[%clk 0:01:38]} 19. h4 {[%clk 0:01:55]}  Nc5 {[%clk 0:01:22]} 20. g5 {[%clk 0:01:55]}  Qg6 {[%clk 0:01:22]} 21. h5 {[%clk 0:01:32]}  Qxh5 {[%clk 0:01:18]} 22. Rh1 {[%clk 0:01:31]}  Qg6 {[%clk 0:01:17]} 23. Nxc6 {[%clk 0:01:20]}  bxc6 {[%clk 0:01:15]} 24. gxh6 {[%clk 0:01:20]}  Nxe4 {[%clk 0:01:08]} 25. Nxe4 {[%clk 0:01:20]}  Qxe4 {[%clk 0:01:09]} 26. hxg7 {[%clk 0:01:21]}  Kxg7 {[%clk 0:01:00]} 27. Rdg1+ {[%clk 0:01:14]}  Kf8 {[%clk 0:00:57]} 28. Rh8+ {[%clk 0:01:12]}  Ke7 {[%clk 0:00:56]} 29. Re1 {[%clk 0:01:13]} 1-0


[Site "https://www.chess.com"]

[Event "Titled Tuesday Blitz December 13 Early 2022"]
[White "Akylbekov, Nasyr"]
[Black "Stanisz, Patryk"]
[WhiteFideId "13800353"]
[BlackFideId "1123106"]
[WhiteElo "2310"]
[BlackElo "2069"]
[Result "1-0"]
[Round "08"]
[TimeControl "180+1"]
[Date "2022.12.14"]
[WhiteClock "0:02:27"]
[BlackClock "0:00:44"]

1. e4 {[%clk 0:03:00]}  c5 {[%clk 0:02:45]} 2. Nf3 {[%clk 0:03:00]}  Nc6 {[%clk 0:02:44]} 3. Nc3 {[%clk 0:03:01]}  Nf6 {[%clk 0:02:44]} 4. d4 {[%clk 0:03:01]}  cxd4 {[%clk 0:02:44]} 5. Nxd4 {[%clk 0:03:02]}  e5 {[%clk 0:02:44]} 6. Nxc6 {[%clk 0:03:03]}  bxc6 {[%clk 0:02:44]} 7. Bd3 {[%clk 0:03:04]}  Bb4 {[%clk 0:02:44]} 8. O-O {[%clk 0:03:04]}  h6 {[%clk 0:02:45]} 9. Ne2 {[%clk 0:03:04]}  O-O {[%clk 0:02:43]} 10. Ng3 {[%clk 0:03:03]}  d5 {[%clk 0:02:36]} 11. Qe2 {[%clk 0:03:03]}  Re8 {[%clk 0:02:27]} 12. h3 {[%clk 0:03:01]}  a5 {[%clk 0:02:23]} 13. a3 {[%clk 0:03:00]}  Bc5 {[%clk 0:02:23]} 14. Be3 {[%clk 0:02:58]}  d4 {[%clk 0:02:23]} 15. Bd2 {[%clk 0:02:59]}  Bd6 {[%clk 0:02:21]} 16. b4 {[%clk 0:02:59]}  axb4 {[%clk 0:02:17]} 17. axb4 {[%clk 0:02:58]}  Be6 {[%clk 0:02:12]} 18. c3 {[%clk 0:02:57]}  c5 {[%clk 0:02:06]} 19. b5 {[%clk 0:02:41]}  c4 {[%clk 0:02:05]} 20. Bxc4 {[%clk 0:02:40]}  Bxc4 {[%clk 0:01:46]} 21. Qxc4 {[%clk 0:02:41]}  Rc8 {[%clk 0:01:47]} 22. Qd3 {[%clk 0:02:40]}  dxc3 {[%clk 0:01:47]} 23. Bxc3 {[%clk 0:02:41]}  Bc5 {[%clk 0:01:38]} 24. Qxd8 {[%clk 0:02:38]}  Rexd8 {[%clk 0:01:38]} 25. Bxe5 {[%clk 0:02:38]}  Nd7 {[%clk 0:01:27]} 26. Bf4 {[%clk 0:02:38]}  g5 {[%clk 0:01:09]} 27. Bc1 {[%clk 0:02:37]}  Ne5 {[%clk 0:01:09]} 28. Nf5 {[%clk 0:02:34]}  Kh7 {[%clk 0:01:08]} 29. Be3 {[%clk 0:02:33]}  Rd3 {[%clk 0:00:51]} 30. Bxc5 {[%clk 0:02:29]}  Rxc5 {[%clk 0:00:52]} 31. Rab1 {[%clk 0:02:29]}  Rc7 {[%clk 0:00:44]} 32. b6 {[%clk 0:02:27]}  Rb7 {[%clk 0:00:44]} 33. Rfc1 {[%clk 0:02:27]} 1-0


[Site "https://www.chess.com"]

[Event "Titled Tuesday Blitz December 13 Early 2022"]
[White "Aradhya, Garg"]
[Black "Taboas Rodriguez, Daniel"]
[WhiteFideId "25006746"]
[BlackFideId "2208466"]
[WhiteElo "2278"]
[BlackElo "2329"]
[Result "0-1"]
[Round "08"]
[TimeControl "180+1"]
[Date "2022.12.14"]
[WhiteClock "0:00:20"]
[BlackClock "0:00:15"]

1. d4 {[%clk 0:03:00]}  b5 {[%clk 0:03:00]} 2. e4 {[%clk 0:02:59]}  Bb7 {[%clk 0:03:01]} 3. Bxb5 {[%clk 0:02:56]}  Bxe4 {[%clk 0:03:00]} 4. Nf3 {[%clk 0:02:56]}  Nf6 {[%clk 0:03:00]} 5. Nc3 {[%clk 0:02:56]}  Bb7 {[%clk 0:03:00]} 6. O-O {[%clk 0:02:56]}  e6 {[%clk 0:02:58]} 7. Ne5 {[%clk 0:02:52]}  Be7 {[%clk 0:02:56]} 8. Qd3 {[%clk 0:02:38]}  O-O {[%clk 0:02:55]} 9. Qg3 {[%clk 0:02:38]}  d6 {[%clk 0:02:42]} 10. Nf3 {[%clk 0:02:30]}  Ne4 {[%clk 0:02:35]} 11. Nxe4 {[%clk 0:02:05]}  Bxe4 {[%clk 0:02:36]} 12. c3 {[%clk 0:02:06]}  Nd7 {[%clk 0:02:34]} 13. Re1 {[%clk 0:02:06]}  Bg6 {[%clk 0:02:32]} 14. d5 {[%clk 0:01:24]}  Rb8 {[%clk 0:02:21]} 15. dxe6 {[%clk 0:01:13]}  Rxb5 {[%clk 0:02:20]} 16. exd7 {[%clk 0:01:13]}  Qxd7 {[%clk 0:02:21]} 17. Nd4 {[%clk 0:01:13]}  Rb6 {[%clk 0:01:54]} 18. h4 {[%clk 0:01:11]}  Bf6 {[%clk 0:01:52]} 19. Nf3 {[%clk 0:01:09]}  Re8 {[%clk 0:01:48]} 20. Bg5 {[%clk 0:01:09]}  Bxg5 {[%clk 0:01:45]} 21. Qxg5 {[%clk 0:01:08]}  Rxb2 {[%clk 0:01:24]} 22. Rxe8+ {[%clk 0:01:04]}  Qxe8 {[%clk 0:01:25]} 23. Re1 {[%clk 0:01:04]}  Qb8 {[%clk 0:01:21]} 24. h5 {[%clk 0:01:03]}  h6 {[%clk 0:01:21]} 25. Qg4 {[%clk 0:01:01]}  Bd3 {[%clk 0:01:13]} 26. Re7 {[%clk 0:00:59]}  Re2 {[%clk 0:01:02]} 27. Qd7 {[%clk 0:00:53]}  Rxe7 {[%clk 0:00:48]} 28. Qxe7 {[%clk 0:00:54]}  Qb1+ {[%clk 0:00:42]} 29. Kh2 {[%clk 0:00:54]}  Qxa2 {[%clk 0:00:42]} 30. Qxc7 {[%clk 0:00:53]}  Qxf2 {[%clk 0:00:42]} 31. Qc8+ {[%clk 0:00:34]}  Kh7 {[%clk 0:00:42]} 32. Qd7 {[%clk 0:00:35]}  Qc5 {[%clk 0:00:14]} 33. Qxf7 {[%clk 0:00:33]}  Qxc3 {[%clk 0:00:14]} 34. Qxa7 {[%clk 0:00:29]}  Qf6 {[%clk 0:00:12]} 35. Qe3 {[%clk 0:00:28]}  Bf5 {[%clk 0:00:11]} 36. Qf4 {[%clk 0:00:28]}  d5 {[%clk 0:00:10]} 37. Nd4 {[%clk 0:00:23]}  Be4 {[%clk 0:00:05]} 38. Qxf6 {[%clk 0:00:23]}  gxf6 {[%clk 0:00:06]} 39. Kg3 {[%clk 0:00:24]}  Kg7 {[%clk 0:00:06]} 40. Kf4 {[%clk 0:00:24]}  Bxg2 {[%clk 0:00:06]} 41. Nf5+ {[%clk 0:00:23]}  Kh7 {[%clk 0:00:06]} 42. Ne7 {[%clk 0:00:19]}  Be4 {[%clk 0:00:06]} 43. Ke3 {[%clk 0:00:19]}  Kg7 {[%clk 0:00:06]} 44. Kd4 {[%clk 0:00:19]}  Kf7 {[%clk 0:00:06]} 45. Nxd5 {[%clk 0:00:18]}  Bxd5 {[%clk 0:00:07]} 46. Kxd5 {[%clk 0:00:19]}  Ke7 {[%clk 0:00:07]} 47. Kd4 {[%clk 0:00:17]}  Kd6 {[%clk 0:00:07]} 48. Ke4 {[%clk 0:00:17]}  Ke6 {[%clk 0:00:08]} 49. Kf4 {[%clk 0:00:16]}  f5 {[%clk 0:00:08]} 50. Kf3 {[%clk 0:00:17]}  Ke5 {[%clk 0:00:09]} 51. Ke3 {[%clk 0:00:17]}  f4+ {[%clk 0:00:10]} 52. Kd3 {[%clk 0:00:17]}  Kf5 {[%clk 0:00:11]} 53. Ke2 {[%clk 0:00:18]}  Kg4 {[%clk 0:00:11]} 54. Kf2 {[%clk 0:00:18]}  Kxh5 {[%clk 0:00:12]} 55. Kf3 {[%clk 0:00:19]}  Kg5 {[%clk 0:00:12]} 56. Kf2 {[%clk 0:00:19]}  Kg4 {[%clk 0:00:13]} 57. Kg2 {[%clk 0:00:20]}  f3+ {[%clk 0:00:14]} 58. Kf2 {[%clk 0:00:21]}  Kf4 {[%clk 0:00:14]} 59. Kf1 {[%clk 0:00:20]}  Kg3 {[%clk 0:00:15]} 60. Kg1 {[%clk 0:00:21]}  f2+ {[%clk 0:00:15]} 61. Kh1 {[%clk 0:00:20]}  f1=Q# {[%clk 0:00:15]} 0-1


[Site "https://www.chess.com"]

[Event "Titled Tuesday Blitz December 13 Early 2022"]
[White "Balint, Vilmos"]
[Black "Rangel, Daniel"]
[WhiteFideId "718050"]
[BlackFideId "2124475"]
[WhiteElo "2183"]
[BlackElo "2225"]
[Result "1-0"]
[Round "08"]
[TimeControl "180+1"]
[Date "2022.12.14"]
[WhiteClock "0:00:25"]
[BlackClock "0:00:01"]

1. e4 {[%clk 0:02:48]}  c5 {[%clk 0:02:53]} 2. Nf3 {[%clk 0:02:46]}  g6 {[%clk 0:02:53]} 3. d4 {[%clk 0:02:46]}  cxd4 {[%clk 0:02:52]} 4. Qxd4 {[%clk 0:02:47]}  Nf6 {[%clk 0:02:51]} 5. e5 {[%clk 0:02:47]}  Nc6 {[%clk 0:02:51]} 6. Qd1 {[%clk 0:02:47]}  Nxe5 {[%clk 0:02:50]} 7. Nxe5 {[%clk 0:02:44]}  Qa5+ {[%clk 0:02:51]} 8. Nc3 {[%clk 0:02:45]}  Qxe5+ {[%clk 0:02:51]} 9. Be2 {[%clk 0:02:45]}  Bg7 {[%clk 0:02:51]} 10. O-O {[%clk 0:02:45]}  O-O {[%clk 0:02:52]} 11. Re1 {[%clk 0:02:46]}  Qc7 {[%clk 0:02:47]} 12. Bf3 {[%clk 0:02:42]}  d6 {[%clk 0:02:38]} 13. Bg5 {[%clk 0:02:40]}  Be6 {[%clk 0:02:36]} 14. Nb5 {[%clk 0:02:34]}  Qb6 {[%clk 0:02:35]} 15. Nd4 {[%clk 0:02:35]}  Qxb2 {[%clk 0:02:16]} 16. Rb1 {[%clk 0:02:32]}  Qxa2 {[%clk 0:02:12]} 17. Rxb7 {[%clk 0:02:32]}  Bd5 {[%clk 0:02:05]} 18. Rbxe7 {[%clk 0:02:10]}  Bxf3 {[%clk 0:02:00]} 19. Qxf3 {[%clk 0:02:09]}  Qd5 {[%clk 0:01:53]} 20. Bxf6 {[%clk 0:01:41]}  Qxf3 {[%clk 0:01:48]} 21. Nxf3 {[%clk 0:01:34]}  Bxf6 {[%clk 0:01:48]} 22. Rd7 {[%clk 0:01:35]}  a5 {[%clk 0:01:42]} 23. Rxd6 {[%clk 0:01:34]}  Bb2 {[%clk 0:01:42]} 24. Rb1 {[%clk 0:01:30]}  Rfb8 {[%clk 0:01:40]} 25. Nd2 {[%clk 0:01:28]}  a4 {[%clk 0:01:37]} 26. Nc4 {[%clk 0:01:28]}  a3 {[%clk 0:01:36]} 27. Nxb2 {[%clk 0:01:27]}  axb2 {[%clk 0:01:37]} 28. Kf1 {[%clk 0:01:22]}  Ra1 {[%clk 0:01:35]} 29. Rdd1 {[%clk 0:01:22]}  Rba8 {[%clk 0:01:16]} 30. Ke2 {[%clk 0:01:21]}  Re8+ {[%clk 0:01:16]} 31. Kf3 {[%clk 0:01:18]}  Ra3+ {[%clk 0:01:14]} 32. Kg4 {[%clk 0:01:17]}  Rb8 {[%clk 0:01:10]} 33. f3 {[%clk 0:01:10]}  Rc3 {[%clk 0:01:08]} 34. Rd2 {[%clk 0:01:08]}  Kg7 {[%clk 0:01:04]} 35. Kg3 {[%clk 0:01:07]}  Ra3 {[%clk 0:01:02]} 36. Rd3 {[%clk 0:01:04]}  Ra1 {[%clk 0:00:54]} 37. Rdd1 {[%clk 0:01:04]}  Rba8 {[%clk 0:00:53]} 38. Kf2 {[%clk 0:01:02]}  Kf6 {[%clk 0:00:53]} 39. g4 {[%clk 0:00:53]}  Ke5 {[%clk 0:00:39]} 40. Re1+ {[%clk 0:00:53]}  Kd4 {[%clk 0:00:35]} 41. Rxb2 {[%clk 0:00:54]}  Rxe1 {[%clk 0:00:29]} 42. Kxe1 {[%clk 0:00:55]}  Ke3 {[%clk 0:00:24]} 43. Rb3+ {[%clk 0:00:55]}  Kf4 {[%clk 0:00:24]} 44. Kf2 {[%clk 0:00:56]}  Ra2 {[%clk 0:00:20]} 45. Rb4+ {[%clk 0:00:56]}  Kg5 {[%clk 0:00:19]} 46. Rc4 {[%clk 0:00:56]}  f5 {[%clk 0:00:19]} 47. Kg3 {[%clk 0:00:55]}  f4+ {[%clk 0:00:17]} 48. Rxf4 {[%clk 0:00:54]}  Rxc2 {[%clk 0:00:16]} 49. h4+ {[%clk 0:00:55]}  Kh6 {[%clk 0:00:16]} 50. Rf7 {[%clk 0:00:56]}  g5 {[%clk 0:00:12]} 51. Rf6+ {[%clk 0:00:54]}  Kg7 {[%clk 0:00:12]} 52. hxg5 {[%clk 0:00:55]}  Rc5 {[%clk 0:00:12]} 53. f4 {[%clk 0:00:54]}  Ra5 {[%clk 0:00:12]} 54. Re6 {[%clk 0:00:54]}  Ra3+ {[%clk 0:00:11]} 55. Kg2 {[%clk 0:00:55]}  Rb3 {[%clk 0:00:11]} 56. f5 {[%clk 0:00:54]}  Ra3 {[%clk 0:00:11]} 57. Re7+ {[%clk 0:00:54]}  Kg8 {[%clk 0:00:11]} 58. Rb7 {[%clk 0:00:54]}  Rc3 {[%clk 0:00:11]} 59. Re7 {[%clk 0:00:50]}  Ra3 {[%clk 0:00:11]} 60. Kf2 {[%clk 0:00:51]}  Rb3 {[%clk 0:00:10]} 61. Re3 {[%clk 0:00:51]}  Rb2+ {[%clk 0:00:09]} 62. Kg3 {[%clk 0:00:51]}  Ra2 {[%clk 0:00:10]} 63. Kf4 {[%clk 0:00:51]}  Ra4+ {[%clk 0:00:10]} 64. Re4 {[%clk 0:00:52]}  Ra1 {[%clk 0:00:10]} 65. Rb4 {[%clk 0:00:49]}  Kg7 {[%clk 0:00:09]} 66. Rb7+ {[%clk 0:00:48]}  Kg8 {[%clk 0:00:09]} 67. Rd7 {[%clk 0:00:48]}  Ra4+ {[%clk 0:00:09]} 68. Ke5 {[%clk 0:00:49]}  Rxg4 {[%clk 0:00:07]} 69. Kf6 {[%clk 0:00:48]}  h6 {[%clk 0:00:05]} 70. g6 {[%clk 0:00:46]}  Rd4 {[%clk 0:00:01]} 71. Rxd4 {[%clk 0:00:25]} 1-0


[Site "https://www.chess.com"]

[Event "Titled Tuesday Blitz December 13 Early 2022"]
[White "Barria Zuniga, Daniel"]
[Black "Manukian, Artak"]
[WhiteFideId "3400816"]
[BlackFideId "13301373"]
[WhiteElo "2414"]
[BlackElo "2130"]
[Result "1/2-1/2"]
[Round "08"]
[TimeControl "180+1"]
[Date "2022.12.14"]
[WhiteClock "0:00:59"]
[BlackClock "0:01:53"]

1. d4 {[%clk 0:02:34]}  d5 {[%clk 0:02:59]} 2. c4 {[%clk 0:02:33]}  dxc4 {[%clk 0:02:59]} 3. Nf3 {[%clk 0:02:32]}  Nf6 {[%clk 0:02:59]} 4. e3 {[%clk 0:02:32]}  e6 {[%clk 0:03:00]} 5. Bxc4 {[%clk 0:02:32]}  c5 {[%clk 0:03:00]} 6. Nc3 {[%clk 0:02:31]}  a6 {[%clk 0:03:00]} 7. O-O {[%clk 0:02:31]}  b5 {[%clk 0:03:00]} 8. Bb3 {[%clk 0:02:32]}  Bb7 {[%clk 0:03:01]} 9. Re1 {[%clk 0:02:32]}  Be7 {[%clk 0:03:00]} 10. e4 {[%clk 0:02:30]}  cxd4 {[%clk 0:02:59]} 11. Nxd4 {[%clk 0:02:30]}  Nc6 {[%clk 0:02:57]} 12. Be3 {[%clk 0:02:21]}  O-O {[%clk 0:02:53]} 13. f3 {[%clk 0:02:08]}  Bc5 {[%clk 0:02:39]} 14. Nxc6 {[%clk 0:02:01]}  Bxe3+ {[%clk 0:02:36]} 15. Rxe3 {[%clk 0:02:00]}  Bxc6 {[%clk 0:02:33]} 16. Qxd8 {[%clk 0:01:56]}  Rfxd8 {[%clk 0:02:32]} 17. Rc1 {[%clk 0:01:56]}  Rd2 {[%clk 0:02:23]} 18. Re2 {[%clk 0:01:55]}  Rad8 {[%clk 0:02:19]} 19. Kf2 {[%clk 0:01:51]}  b4 {[%clk 0:02:12]} 20. Rxd2 {[%clk 0:01:22]}  Rxd2+ {[%clk 0:02:04]} 21. Ne2 {[%clk 0:01:21]}  Bb5 {[%clk 0:02:05]} 22. Rc8+ {[%clk 0:01:19]}  Ne8 {[%clk 0:02:04]} 23. Bc4 {[%clk 0:01:18]}  Kf8 {[%clk 0:01:59]} 24. Bxb5 {[%clk 0:01:18]}  axb5 {[%clk 0:01:58]} 25. Rb8 {[%clk 0:00:59]}  Rxb2 {[%clk 0:01:57]} 26. Rxb5 {[%clk 0:00:59]}  Rxa2 {[%clk 0:01:56]} 27. Rxb4 {[%clk 0:00:59]}  Nd6 {[%clk 0:01:53]} 1/2-1/2


[Site "https://www.chess.com"]

[Event "Titled Tuesday Blitz December 13 Early 2022"]
[White "Bogaudinov, Rushan"]
[Black "Bruned, Boris"]
[WhiteFideId "4129288"]
[BlackFideId "621790"]
[WhiteElo "2028"]
[BlackElo "2049"]
[Result "1-0"]
[Round "08"]
[TimeControl "180+1"]
[Date "2022.12.14"]
[WhiteClock "0:01:05"]
[BlackClock "0:00:20"]

1. a3 {[%clk 0:02:10]}  b6 {[%clk 0:03:00]} 2. b4 {[%clk 0:02:10]}  Bb7 {[%clk 0:03:00]} 3. Bb2 {[%clk 0:02:10]}  a5 {[%clk 0:03:00]} 4. b5 {[%clk 0:02:09]}  Nf6 {[%clk 0:02:59]} 5. h4 {[%clk 0:02:08]}  e6 {[%clk 0:02:44]} 6. h5 {[%clk 0:02:06]}  h6 {[%clk 0:02:44]} 7. d3 {[%clk 0:02:05]}  d6 {[%clk 0:02:42]} 8. e4 {[%clk 0:02:05]}  Nbd7 {[%clk 0:02:43]} 9. Be2 {[%clk 0:02:04]}  e5 {[%clk 0:02:41]} 10. Nh3 {[%clk 0:01:55]}  Nc5 {[%clk 0:02:40]} 11. a4 {[%clk 0:01:49]}  Bc8 {[%clk 0:02:38]} 12. Nc3 {[%clk 0:01:46]}  Be6 {[%clk 0:02:32]} 13. O-O {[%clk 0:01:41]}  Qc8 {[%clk 0:02:27]} 14. Kh2 {[%clk 0:01:39]}  Bxh3 {[%clk 0:02:21]} 15. gxh3 {[%clk 0:01:38]}  Ne6 {[%clk 0:02:22]} 16. Bg4 {[%clk 0:01:36]}  Qd8 {[%clk 0:02:09]} 17. Bxe6 {[%clk 0:01:29]}  fxe6 {[%clk 0:02:10]} 18. f4 {[%clk 0:01:24]}  exf4 {[%clk 0:02:07]} 19. Rxf4 {[%clk 0:01:25]}  e5 {[%clk 0:02:02]} 20. Rf5 {[%clk 0:01:24]}  Qd7 {[%clk 0:02:01]} 21. Qf3 {[%clk 0:01:23]}  O-O-O {[%clk 0:02:01]} 22. Rg1 {[%clk 0:01:21]}  Rh7 {[%clk 0:01:26]} 23. Rg6 {[%clk 0:01:20]}  Be7 {[%clk 0:01:17]} 24. Bc1 {[%clk 0:01:18]}  Kb8 {[%clk 0:01:14]} 25. Be3 {[%clk 0:01:16]}  Qe6 {[%clk 0:01:02]} 26. Bf2 {[%clk 0:01:06]}  Qd7 {[%clk 0:00:20]} 27. Bh4 {[%clk 0:01:05]} 1-0


[Site "https://www.chess.com"]